fUSD/lending_fUSD_20240224
["ID","MTS","AMOUNT","RATE_DAILY","PERIOD"]
[315039301,1708756233886,-225367.517124,0.00027298,2]
[315039302,1708756233895,-225367.517124,0.00027298,2]
[315039303,1708756233905,-225367.517124,0.00027298,2]
[315039304,1708756233914,-225367.517124,0.00027298,2]
[315039305,1708756233923,-22089.457336,0.00027298,2]
[315039306,1708756233933,-225367.517124,0.00027298,2]
[315039307,1708756233942,-225367.517124,0.00027298,2]
[315039308,1708756233952,-22089.457336,0.00027298,2]
[315039309,1708756233961,-225367.517124,0.00027298,2]
[315039310,1708756233970,-22089.457336,0.00027298,2]
[315039311,1708756233980,-225367.517124,0.00027298,2]
[315039312,1708756233989,-22089.457336,0.00027298,2]
[315039313,1708756233998,-22089.457336,0.00027298,2]
[315039314,1708756234009,-22089.457336,0.00027298,2]
[315039315,1708756234018,-1000.0,0.00027299,2]
[315039316,1708756234027,-847155.47288328,0.000273,3]
[315039317,1708756234041,-1147.5780579,0.000273,3]
[315039318,1708756234052,-536.0419864,0.000273,3]
[315039319,1708756234064,-1257.70416959,0.000273,3]
[315039320,1708756234076,-270.29095374,0.000273,3]
[315039321,1708756234087,-1488.795,0.000273,3]
[315039322,1708756234148,-4453.79065983,0.000273,3]
[315039323,1708756234159,-4801.5809831,0.000273,3]
[315039324,1708756234170,-369001.86117537,0.000273,3]
[315039325,1708756234197,-305901.37574101,0.000273,3]
[315039326,1708756237489,-1376.767,0.00026557,4]
[315039327,1708756237662,-1216.173418,0.00026557,4]
[315039328,1708756237673,-9037.88458967,0.00026557,4]
[315039329,1708756237720,-1933122.82889866,0.00026557,4]
[315039330,1708756237730,-206.91176814,0.00026558,2]
[315039331,1708756237739,-1287353.37205551,0.000273,3]
[315039332,1708756237749,-33124.9111157,0.000273,3]
[315039333,1708756237760,-2000.0,0.000273,2]
[315039334,1708756237769,-200.0,0.000273,2]
[315039335,1708756237778,-2000.0,0.000273,2]
[315039337,1708756237787,-200.0,0.000273,2]
[315039339,1708756237798,-1525.039293,0.000273,2]
[315039341,1708756237807,-193023.0354411,0.00027303,2]
[315039343,1708756237817,-31028.1540987,0.00027303,2]
[315039345,1708756237827,-5292.1995753,0.00027312,2]
[315039347,1708756237837,-702.057757,0.00027331,2]
[315039349,1708756237846,-5483.5724844,0.00027331,2]
[315039350,1708756237855,-433.76,0.00027349,2]
[315039352,1708756237865,-161.51095239,0.0002737,10]
[315039353,1708756237875,-165.83,0.00027378,2]
[315039354,1708756237884,-170.8,0.00027379,2]
[315039355,1708756237893,-570.67777969,0.00027395,10]
[315039356,1708756237903,-1817.98,0.00027395,2]
[315039357,1708756237913,-500.0,0.00027397,2]
[315039358,1708756237923,-500.0,0.00027397,2]
[315039359,1708756237932,-504.01655738,0.00027397,2]
[315039360,1708756237942,-500.0,0.00027397,2]
[315039361,1708756237952,-500.71889856,0.00027397,2]
[315039362,1708756237966,-501.68635965,0.00027397,2]
[315039363,1708756237975,-502.76309681,0.00027397,2]
[315039364,1708756237985,-500.0,0.00027397,2]
[315039365,1708756237995,-337.44830536,0.00027397,2]
[315039366,1708756238007,-500.0,0.00027397,2]
[315039367,1708756238016,-534.19001088,0.00027397,2]
[315039368,1708756238026,-500.0,0.00027397,2]
[315039369,1708756238035,-571.27824586,0.00027397,2]
[315039370,1708756238044,-500.0,0.00027397,2]
[315039371,1708756238054,-500.0,0.00027397,2]
[315039372,1708756238064,-537.54224952,0.00027397,2]
[315039373,1708756238073,-527.5745595,0.00027397,2]
[315039374,1708756238083,-500.0,0.00027397,2]
[315039375,1708756238093,-500.0,0.00027397,2]
[315039376,1708756238102,-500.0,0.00027397,2]
[315039377,1708756238111,-500.0,0.00027397,2]
[315039378,1708756238120,-507.22145496,0.00027397,2]
[315039379,1708756238130,-626.86872234,0.00027397,2]
[315039380,1708756238140,-503.18468443,0.00027397,2]
[315039381,1708756238149,-500.0,0.00027397,2]
[315039382,1708756238158,-502.35013469,0.00027397,2]
[315039383,1708756238168,-501.88392312,0.00027397,2]
[315039384,1708756238177,-507.90505902,0.00027397,2]
[315039385,1708756238187,-500.0,0.00027397,2]
[315039386,1708756238196,-506.38993787,0.00027397,2]
[315039387,1708756238205,-500.0,0.00027397,2]
[315039388,1708756238215,-505.08423388,0.00027397,2]
[315039389,1708756238224,-249.0439841,0.00027397,2]
[315039390,1708756238233,-507.04415093,0.00027397,2]
[315039391,1708756238245,-504.06218842,0.00027397,2]
[315039392,1708756238254,-500.0,0.00027397,2]
[315039393,1708756238265,-503.50513415,0.00027397,2]
[315039394,1708756238279,-505.43262112,0.00027397,2]
[315039395,1708756238288,-500.0,0.00027397,2]
[315039396,1708756238298,-507.57762677,0.00027397,2]
[315039397,1708756238307,-502.01075234,0.00027397,2]
[315039398,1708756238318,-503.8813627,0.00027397,2]
[315039399,1708756238327,-505.03110972,0.00027397,2]
[315039400,1708756238336,-632.45412106,0.00027397,2]
[315039401,1708756238347,-575.97498207,0.00027397,2]
[315039402,1708756238354,-205.84154624,0.00027397,2]
[315039403,1708756238362,-506.82489327,0.00027397,2]
[315039404,1708756238369,-503.12374039,0.00027397,2]
[315039405,1708756238379,-506.12691433,0.00027397,2]
[315039406,1708756238389,-424.04178631,0.00027397,2]
[315039407,1708756238398,-534.00569832,0.00027397,2]
[315039408,1708756238412,-500.0,0.00027397,2]
[315039409,1708756238422,-511.12366504,0.00027397,2]
[315039410,1708756238432,-505.81093894,0.00027397,2]
[315039411,1708756238442,-500.0,0.00027397,2]
[315039412,1708756238451,-512.02004417,0.00027397,2]
[315039413,1708756238460,-500.0,0.00027397,2]
[315039414,1708756238470,-514.25455922,0.00027397,2]
[315039415,1708756238479,-500.0,0.00027397,2]
[315039416,1708756238489,-505.87601226,0.00027397,2]
[315039417,1708756238499,-500.0,0.00027397,2]
[315039418,1708756238509,-508.88173271,0.00027397,2]
[315039419,1708756238519,-541.22514963,0.00027397,2]
[315039420,1708756238529,-500.0,0.00027397,2]
[315039421,1708756238538,-500.0,0.00027397,2]
[315039422,1708756238547,-500.0,0.00027397,2]
[315039423,1708756238557,-500.0,0.00027397,2]
[315039424,1708756238566,-500.0,0.00027397,2]
[315039425,1708756238575,-509.43764631,0.00027397,2]
[315039426,1708756238585,-500.0,0.00027397,2]
[315039427,1708756238595,-513.75029344,0.00027397,2]
[315039428,1708756238604,-500.0,0.00027397,2]
[315039429,1708756238613,-514.49713685,0.00027397,2]
[315039430,1708756238624,-500.0,0.00027397,2]
[315039431,1708756238634,-511.57464264,0.00027397,2]
[315039432,1708756238672,-508.62195771,0.00027397,2]
[315039433,1708756238682,-500.0,0.00027397,2]
[315039434,1708756238691,-500.0,0.00027397,2]
[315039435,1708756238701,-510.02850308,0.00027397,2]
[315039436,1708756238710,-500.0,0.00027397,2]
[315039437,1708756238720,-500.0,0.00027397,2]
[315039438,1708756238730,-500.0,0.00027397,2]
[315039439,1708756238739,-523.01908018,0.00027397,2]
[315039440,1708756238750,-574.5850126,0.00027397,2]
[315039441,1708756238762,-509.64759585,0.00027397,2]
[315039442,1708756238772,-500.0,0.00027397,2]
[315039443,1708756238781,-507.32717948,0.00027397,2]
[315039444,1708756238791,-500.0,0.00027397,2]
[315039445,1708756238801,-511.41037949,0.00027397,2]
[315039446,1708756238812,-500.0,0.00027397,2]
[315039447,1708756238821,-505.2867996,0.00027397,2]
[315039448,1708756238831,-500.0,0.00027397,2]
[315039449,1708756238841,-500.0,0.00027397,2]
[315039450,1708756238851,-512.73553892,0.00027397,2]
[315039451,1708756238860,-500.0,0.00027397,2]
[315039452,1708756238872,-510.12213041,0.00027397,2]
[315039453,1708756238882,-513.32068131,0.00027397,2]
[315039454,1708756238892,-507.66120958,0.00027397,2]
[315039455,1708756238902,-506.82216442,0.00027397,2]
[315039456,1708756238911,-505.7544647,0.00027397,2]
[315039457,1708756238921,-500.0,0.00027397,2]
[315039458,1708756238930,-434.83699815,0.00027397,2]
[315039459,1708756238939,-540.75082939,0.00027397,2]
[315039460,1708756238949,-513.45220222,0.00027397,2]
[315039461,1708756238958,-500.0,0.00027397,2]
[315039462,1708756238967,-500.0,0.00027397,2]
[315039463,1708756238978,-500.0,0.00027397,2]
[315039464,1708756238987,-500.0,0.00027397,2]
[315039465,1708756238997,-500.0,0.00027397,2]
[315039466,1708756239008,-500.0,0.00027397,2]
[315039467,1708756239017,-368.07409949,0.00027397,2]
[315039468,1708756239027,-500.0,0.00027397,2]
[315039469,1708756239036,-500.0,0.00027397,2]
[315039470,1708756239046,-500.0,0.00027397,2]
[315039471,1708756239055,-514.38125817,0.00027397,2]
[315039472,1708756239065,-500.0,0.00027397,2]
[315039473,1708756239075,-500.0,0.00027397,2]
[315039474,1708756239084,-500.0,0.00027397,2]
[315039475,1708756239094,-515.95465564,0.00027397,2]
[315039476,1708756239104,-500.0,0.00027397,2]
[315039477,1708756239113,-508.41783662,0.00027397,2]
[315039478,1708756239123,-574.98817688,0.00027397,2]
[315039479,1708756239132,-500.0,0.00027397,2]
[315039480,1708756239141,-509.4017153,0.00027397,2]
[315039481,1708756239150,-513.22215889,0.00027397,2]
[315039482,1708756239159,-503.20793965,0.00027397,2]
[315039483,1708756239168,-500.0,0.00027397,2]
[315039484,1708756239177,-500.0,0.00027397,2]
[315039485,1708756239187,-503.53485775,0.00027397,2]
[315039486,1708756239196,-553.4229994,0.00027397,2]
[315039487,1708756239205,-514.7940169,0.00027397,2]
[315039488,1708756239215,-500.0,0.00027397,2]
[315039489,1708756239224,-500.0,0.00027397,2]
[315039490,1708756239233,-507.95635566,0.00027397,2]
[315039491,1708756239242,-500.0,0.00027397,2]
[315039492,1708756239261,-422.56810114,0.00027397,2]
[315039493,1708756239276,-500.0,0.00027397,2]
[315039494,1708756239288,-987.17,0.00027397,2]
[315039495,1708756239298,-500.0,0.00027397,2]
[315039496,1708756239309,-500.0,0.00027397,2]
[315039497,1708756239318,-500.0,0.00027397,2]
[315039498,1708756239328,-500.0,0.00027397,2]
[315039499,1708756239338,-500.0,0.00027397,2]
[315039500,1708756239348,-500.0,0.00027397,2]
[315039501,1708756239359,-500.0,0.00027397,2]
[315039502,1708756239369,-500.0,0.00027397,2]
[315039503,1708756239378,-500.0,0.00027397,2]
[315039504,1708756239388,-500.0,0.00027397,2]
[315039505,1708756239398,-438.80785293,0.00027397,2]
[315039506,1708756239407,-625.19587997,0.00027397,2]
[315039507,1708756239417,-504.00603648,0.00027397,2]
[315039508,1708756239426,-501.94225987,0.00027397,2]
[315039509,1708756239435,-522.60384367,0.00027397,2]
[315039510,1708756239445,-500.0,0.00027397,2]
[315039511,1708756239455,-500.0,0.00027397,2]
[315039512,1708756239464,-500.0,0.00027397,2]
[315039513,1708756239474,-500.0,0.00027397,2]
[315039514,1708756239484,-500.0,0.00027397,2]
[315039515,1708756239493,-500.0,0.00027397,2]
[315039516,1708756239503,-500.0,0.00027397,2]
[315039517,1708756239513,-506.24284602,0.00027397,2]
[315039518,1708756239523,-511.62938254,0.00027397,2]
[315039519,1708756239533,-500.0,0.00027397,2]
[315039520,1708756239542,-518.74670083,0.00027397,2]
[315039521,1708756239551,-500.0,0.00027397,2]
[315039522,1708756239561,-500.0,0.00027397,2]
[315039523,1708756239572,-500.0,0.00027397,2]
[315039524,1708756239582,-500.0,0.00027397,2]
[315039525,1708756239591,-500.0,0.00027397,2]
[315039526,1708756239600,-500.0,0.00027397,2]
[315039527,1708756239610,-500.0,0.00027397,2]
[315039528,1708756239620,-510.7102254,0.00027397,2]
[315039529,1708756239631,-500.0,0.00027397,2]
[315039530,1708756239643,-500.0,0.00027397,2]
[315039531,1708756239656,-500.0,0.00027397,2]
[315039532,1708756239666,-500.0,0.00027397,2]
[315039533,1708756239677,-500.0,0.00027397,2]
[315039534,1708756239687,-510.16467243,0.00027397,2]
[315039535,1708756239696,-500.0,0.00027397,2]
[315039536,1708756239706,-500.0,0.00027397,2]
[315039537,1708756239715,-516.38033952,0.00027397,2]
[315039538,1708756239725,-500.0,0.00027397,2]
[315039539,1708756239735,-507.59163824,0.00027397,2]
[315039540,1708756239745,-500.0,0.00027397,2]
[315039541,1708756239755,-500.0,0.00027397,2]
[315039542,1708756239765,-500.0,0.00027397,2]
[315039543,1708756239774,-500.0,0.00027397,2]
[315039544,1708756239784,-525.0248896,0.00027397,2]
[315039545,1708756239794,-500.0,0.00027397,2]
[315039546,1708756239803,-500.0,0.00027397,2]
[315039547,1708756239813,-500.0,0.00027397,2]
[315039548,1708756239823,-507.36900606,0.00027397,2]
[315039549,1708756239832,-500.0,0.00027397,2]
[315039550,1708756239842,-500.0,0.00027397,2]
[315039551,1708756239852,-500.0,0.00027397,2]
[315039552,1708756239862,-500.0,0.00027397,2]
[315039553,1708756239872,-295.4198316,0.00027397,2]
[315039554,1708756239881,-500.0,0.00027397,2]
[315039555,1708756239891,-500.0,0.00027397,2]
[315039556,1708756239901,-500.0,0.00027397,2]
[315039557,1708756239911,-508.85340506,0.00027397,2]
[315039558,1708756239921,-500.0,0.00027397,2]
[315039560,1708756239931,-500.0,0.00027397,2]
[315039561,1708756239940,-500.0,0.00027397,2]
[315039562,1708756239950,-413.26220366,0.00027397,2]
[315039563,1708756239960,-500.0,0.00027397,2]
[315039564,1708756240153,-500.0,0.00027397,2]
[315039565,1708756240163,-509.8086738,0.00027397,2]
[315039566,1708756240174,-500.0,0.00027397,2]
[315039567,1708756240183,-502.75761908,0.00027397,2]
[315039568,1708756240193,-500.0,0.00027397,2]
[315039569,1708756240202,-500.0,0.00027397,2]
[315039570,1708756240211,-500.0,0.00027397,2]
[315039571,1708756240221,-500.0,0.00027397,2]
[315039572,1708756240230,-500.0,0.00027397,2]
[315039573,1708756240239,-500.0,0.00027397,2]
[315039574,1708756240248,-500.0,0.00027397,2]
[315039575,1708756240257,-500.0,0.00027397,2]
[315039576,1708756240267,-500.0,0.00027397,2]
[315039577,1708756240280,-500.0,0.00027397,2]
[315039578,1708756240290,-500.0,0.00027397,2]
[315039579,1708756240299,-500.0,0.00027397,2]
[315039580,1708756240308,-513.6857371,0.00027397,2]
[315039581,1708756240318,-508.33664598,0.00027397,2]
[315039582,1708756240327,-500.0,0.00027397,2]
[315039583,1708756240336,-500.0,0.00027397,2]
[315039584,1708756240345,-500.0,0.00027397,2]
[315039585,1708756240356,-500.0,0.00027397,2]
[315039586,1708756240365,-500.0,0.00027397,2]
[315039587,1708756240374,-500.0,0.00027397,2]
[315039588,1708756240383,-500.0,0.00027397,2]
[315039589,1708756240392,-503.22155458,0.00027397,2]
[315039590,1708756240401,-502.04109427,0.00027397,2]
[315039591,1708756240410,-500.0,0.00027397,2]
[315039592,1708756240419,-500.0,0.00027397,2]
[315039593,1708756240428,-500.0,0.00027397,2]
[315039594,1708756240437,-204.1231127,0.00027397,2]
[315039595,1708756240446,-500.0,0.00027397,2]
[315039596,1708756240455,-500.0,0.00027397,2]
[315039597,1708756240464,-519.23324889,0.00027397,2]
[315039598,1708756240473,-500.0,0.00027397,2]
[315039599,1708756240482,-508.37581992,0.00027397,2]
[315039600,1708756240492,-544.2000909,0.00027397,2]
[315039601,1708756240501,-500.0,0.00027397,2]
[315039602,1708756240510,-345.74978976,0.00027397,2]
[315039603,1708756240519,-500.0,0.00027397,2]
[315039604,1708756240528,-500.0,0.00027397,2]
[315039605,1708756240537,-500.0,0.00027397,2]
[315039606,1708756240546,-500.0,0.00027397,2]
[315039607,1708756240555,-500.0,0.00027397,2]
[315039608,1708756240564,-500.0,0.00027397,2]
[315039609,1708756240573,-522.20669816,0.00027397,2]
[315039610,1708756240582,-529.91284672,0.00027397,2]
[315039611,1708756240591,-500.0,0.00027397,2]
[315039612,1708756240600,-522.29819956,0.00027397,2]
[315039613,1708756240609,-524.67708319,0.00027397,2]
[315039614,1708756240618,-500.0,0.00027397,2]
[315039615,1708756240627,-101.55363299,0.00027397,2]
[315039616,1708756240966,-398.44636701,0.00027397,2]
[315039617,1708756240976,-500.0,0.00027397,2]
[315039618,1708756240985,-500.0,0.00027397,2]
[315039619,1708756240995,-500.0,0.00027397,2]
[315039620,1708756241004,-500.0,0.00027397,2]
[315039621,1708756241014,-500.0,0.00027397,2]
[315039622,1708756241024,-500.0,0.00027397,2]
[315039623,1708756241033,-509.80858644,0.00027397,2]
[315039624,1708756241043,-500.0,0.00027397,2]
[315039625,1708756241052,-642.22906889,0.00027397,2]
[315039626,1708756241061,-521.55710568,0.00027397,2]
[315039627,1708756241071,-500.0,0.00027397,2]
[315039628,1708756241080,-500.0,0.00027397,2]
[315039629,1708756241089,-502.59565451,0.00027397,2]
[315039630,1708756241098,-500.0,0.00027397,2]
[315039631,1708756241107,-503.30290003,0.00027397,2]
[315039632,1708756241116,-500.0,0.00027397,2]
[315039633,1708756241125,-523.91912823,0.00027397,2]
[315039634,1708756241134,-500.0,0.00027397,2]
[315039635,1708756241143,-500.0,0.00027397,2]
[315039636,1708756241152,-521.67347666,0.00027397,2]
[315039637,1708756241161,-500.0,0.00027397,2]
[315039638,1708756241170,-500.0,0.00027397,2]
[315039639,1708756241180,-161.54442868,0.00027397,2]
[315039640,1708756241189,-500.0,0.00027397,2]
[315039641,1708756241200,-526.92091966,0.00027397,2]
[315039642,1708756241210,-505.3405941,0.00027397,2]
[315039643,1708756241219,-500.0,0.00027397,2]
[315039644,1708756241229,-490.24681567,0.00027397,2]
[315039645,1708756241237,-504.74473802,0.00027397,2]
[315039646,1708756241247,-500.0,0.00027397,2]
[315039647,1708756241258,-213.54519898,0.00027397,2]
[315039648,1708756241267,-519.54078755,0.00027397,2]
[315039649,1708756241281,-500.0,0.00027397,2]
[315039650,1708756241290,-500.0,0.00027397,2]
[315039651,1708756241300,-516.25914282,0.00027397,2]
[315039652,1708756241309,-500.0,0.00027397,2]
[315039653,1708756241318,-500.0,0.00027397,2]
[315039654,1708756241328,-500.0,0.00027397,2]
[315039655,1708756241337,-538.49736132,0.00027397,2]
[315039656,1708756241347,-500.0,0.00027397,2]
[315039657,1708756241357,-500.0,0.00027397,2]
[315039658,1708756241366,-500.0,0.00027397,2]
[315039659,1708756241375,-500.0,0.00027397,2]
[315039660,1708756241384,-531.15667068,0.00027397,2]
[315039661,1708756241394,-509.54895175,0.00027397,2]
[315039662,1708756241403,-500.0,0.00027397,2]
[315039663,1708756241412,-508.21527814,0.00027397,2]
[315039664,1708756241422,-503.79878205,0.00027397,2]
[315039665,1708756241431,-502.36285614,0.00027397,2]
[315039666,1708756241439,-500.0,0.00027397,2]
[315039667,1708756241449,-500.0,0.00027397,2]
[315039668,1708756241458,-508.34166304,0.00027397,2]
[315039669,1708756241468,-500.0,0.00027397,2]
[315039670,1708756241477,-510.69175982,0.00027397,2]
[315039671,1708756241486,-500.0,0.00027397,2]
[315039672,1708756241495,-511.79584334,0.00027397,2]
[315039673,1708756241504,-500.0,0.00027397,2]
[315039674,1708756241514,-500.0,0.00027397,2]
[315039675,1708756241524,-620.12320623,0.00027397,2]
[315039676,1708756241533,-500.0,0.00027397,2]
[315039677,1708756241542,-500.0,0.00027397,2]
[315039678,1708756241551,-500.0,0.00027397,2]
[315039679,1708756241560,-500.0,0.00027397,2]
[315039680,1708756241569,-500.0,0.00027397,2]
[315039681,1708756241578,-500.0,0.00027397,2]
[315039682,1708756241587,-473.47565132,0.00027397,2]
[315039683,1708756241596,-500.0,0.00027397,2]
[315039684,1708756241605,-112.4001855,0.00027397,2]
[315039690,1708756242367,-435.88908572,0.00026499,2]
[315039691,1708756242378,-162.5392602,0.00027298,2]
[315039692,1708756242386,-1117.38504626,0.00027298,2]
[315039693,1708756242406,-517.01,0.00027298,2]
[315039694,1708756242417,-1043.29604861,0.00027298,2]
[315039695,1708756242548,-2306.53216022,0.00027298,2]
[315039696,1708756242557,-387.5998145,0.00027397,2]
[315039697,1708756242566,-500.0,0.00027397,2]
[315039698,1708756242576,-500.0,0.00027397,2]
[315039699,1708756242585,-506.36470974,0.00027397,2]
[315039700,1708756242594,-500.0,0.00027397,2]
[315039701,1708756242603,-155.95116698,0.00027397,2]
[315039702,1708756242612,-500.0,0.00027397,2]
[315039703,1708756242621,-500.0,0.00027397,2]
[315039704,1708756242630,-506.16946187,0.00027397,2]
[315039705,1708756242639,-165.25334986,0.00027397,2]
[315039706,1708756242648,-500.0,0.00027397,2]
[315039707,1708756242657,-500.0,0.00027397,2]
[315039708,1708756242666,-500.0,0.00027397,2]
[315039709,1708756242675,-500.0,0.00027397,2]
[315039710,1708756242684,-500.0,0.00027397,2]
[315039711,1708756242694,-503.8684349,0.00027397,2]
[315039712,1708756242703,-531.35730925,0.00027397,2]
[315039713,1708756242712,-508.75710362,0.00027397,2]
[315039714,1708756242722,-500.0,0.00027397,2]
[315039715,1708756242731,-500.0,0.00027397,2]
[315039716,1708756242740,-500.0,0.00027397,2]
[315039717,1708756242749,-500.0,0.00027397,2]
[315039718,1708756242758,-500.0,0.00027397,2]
[315039719,1708756242767,-518.30627406,0.00027397,2]
[315039720,1708756242776,-500.0,0.00027397,2]
[315039721,1708756242785,-541.79742948,0.00027397,2]
[315039722,1708756242795,-500.48016237,0.00027397,2]
[315039723,1708756242804,-500.0,0.00027397,2]
[315039724,1708756242813,-508.76898576,0.00027397,2]
[315039725,1708756242822,-500.0,0.00027397,2]
[315039726,1708756242831,-500.0,0.00027397,2]
[315039727,1708756242840,-604.82706228,0.00027397,2]
[315039728,1708756242850,-523.31227605,0.00027397,2]
[315039729,1708756242859,-500.0,0.00027397,2]
[315039730,1708756242868,-500.0,0.00027397,2]
[315039731,1708756242878,-500.0,0.00027397,2]
[315039732,1708756242887,-500.0,0.00027397,2]
[315039733,1708756242896,-500.0,0.00027397,2]
[315039734,1708756242905,-500.0,0.00027397,2]
[315039735,1708756242914,-500.0,0.00027397,2]
[315039737,1708756242923,-500.0,0.00027397,2]
[315039739,1708756242932,-500.0,0.00027397,2]
[315039740,1708756242941,-500.0,0.00027397,2]
[315039741,1708756242951,-500.0,0.00027397,2]
[315039742,1708756242960,-518.54760911,0.00027397,2]
[315039743,1708756242969,-512.84375047,0.00027397,2]
[315039744,1708756242978,-500.0,0.00027397,2]
[315039745,1708756242987,-500.0,0.00027397,2]
[315039746,1708756242996,-500.0,0.00027397,2]
[315039747,1708756243006,-500.0,0.00027397,2]
[315039748,1708756243015,-512.35222209,0.00027397,2]
[315039749,1708756243024,-500.0,0.00027397,2]
[315039750,1708756243033,-505.064726,0.00027397,2]
[315039751,1708756243043,-626.06261048,0.00027397,10]
[315039752,1708756243052,-500.0,0.00027397,2]
[315039753,1708756243061,-500.0,0.00027397,2]
[315039754,1708756243071,-500.0,0.00027397,2]
[315039755,1708756243080,-505.74159175,0.00027397,2]
[315039756,1708756243089,-500.0,0.00027397,2]
[315039757,1708756243098,-518.87243545,0.00027397,2]
[315039758,1708756243108,-500.0,0.00027397,2]
[315039759,1708756243117,-500.0,0.00027397,2]
[315039760,1708756243126,-500.0,0.00027397,2]
[315039761,1708756243135,-500.0,0.00027397,2]
[315039762,1708756243144,-500.0,0.00027397,2]
[315039763,1708756243153,-500.0,0.00027397,2]
[315039764,1708756243162,-500.0,0.00027397,2]
[315039765,1708756243171,-500.0,0.00027397,2]
[315039766,1708756243180,-500.0,0.00027397,2]
[315039767,1708756243189,-500.0,0.00027397,2]
[315039768,1708756243199,-500.0,0.00027397,2]
[315039769,1708756243208,-504.294003,0.00027397,2]
[315039770,1708756243217,-500.0,0.00027397,2]
[315039771,1708756243227,-500.0,0.00027397,2]
[315039772,1708756243237,-500.0,0.00027397,2]
[315039773,1708756243246,-554.15538998,0.00027397,2]
[315039774,1708756243256,-500.0,0.00027397,2]
[315039775,1708756243265,-500.0,0.00027397,2]
[315039776,1708756243278,-500.0,0.00027397,2]
[315039777,1708756243288,-500.0,0.00027397,2]
[315039778,1708756243297,-500.0,0.00027397,2]
[315039779,1708756243306,-504.56146863,0.00027397,2]
[315039780,1708756243316,-500.0,0.00027397,2]
[315039781,1708756243325,-505.74144184,0.00027397,2]
[315039782,1708756243334,-500.0,0.00027397,2]
[315039783,1708756243344,-500.0,0.00027397,2]
[315039784,1708756243354,-500.0,0.00027397,2]
[315039785,1708756243365,-500.0,0.00027397,2]
[315039786,1708756243374,-500.0,0.00027397,2]
[315039787,1708756243384,-500.0,0.00027397,2]
[315039788,1708756243393,-420.52803006,0.00027397,2]
[315039789,1708756243402,-500.0,0.00027397,2]
[315039790,1708756243411,-500.0,0.00027397,2]
[315039791,1708756243421,-507.75237049,0.00027397,2]
[315039792,1708756243430,-508.5034931,0.00027397,2]
[315039793,1708756243439,-500.0,0.00027397,2]
[315039794,1708756243448,-500.0,0.00027397,2]
[315039795,1708756243457,-500.0,0.00027397,2]
[315039796,1708756243467,-565.19655808,0.00027397,2]
[315039797,1708756243476,-502.77325095,0.00027397,2]
[315039798,1708756243485,-500.0,0.00027397,2]
[315039799,1708756243495,-500.0,0.00027397,2]
[315039800,1708756243504,-507.51143789,0.00027397,2]
[315039801,1708756243514,-500.0,0.00027397,2]
[315039802,1708756243523,-500.0,0.00027397,2]
[315039803,1708756243532,-520.40461126,0.00027397,2]
[315039804,1708756243541,-500.0,0.00027397,2]
[315039805,1708756243550,-500.0,0.00027397,2]
[315039806,1708756243559,-500.0,0.00027397,2]
[315039807,1708756243568,-501.86057509,0.00027397,2]
[315039808,1708756243577,-500.0,0.00027397,2]
[315039809,1708756243587,-509.05625962,0.00027397,2]
[315039810,1708756243596,-500.0,0.00027397,2]
[315039811,1708756243605,-503.83238348,0.00027397,2]
[315039812,1708756243614,-500.29669762,0.00027397,2]
[315039813,1708756243623,-500.0,0.00027397,2]
[315039814,1708756243632,-500.0,0.00027397,2]
[315039815,1708756243641,-500.0,0.00027397,2]
[315039816,1708756243650,-500.0,0.00027397,2]